[Event "Sardinia World Festival-A 2024"]
[Site "Orosei"]
[Date "2024.04.27"]
[Round "1.51"]
[White "Saine, Zachary"]
[Black "Szwed, Jacek"]
[Result "0-1"]
[ECO "C11"]
[WhiteElo "2032"]
[BlackElo "2336"]
[Annotator "TA"]
[PlyCount "54"]
[EventDate "2024.04.26"]
[EventType "swiss"]
[EventCountry "ITA"]
[SourceTitle "playchess.com"]
[Source "ChessBase"]
[SourceQuality "1"]
[TimeControl "40/5400+30:1800+30"]

{[%evp 15,54,10,0,2,7,8,14,11,9,-11,-11,-15,0,0,0,0,0,0,0,0,0,0,0,0,22,23,29,0,0,-312,-318,-312,-317,-275,-158,-954,-696,-730,-323,-311,-301]} 1. e4 {[%emt 0:02:37]} e6 {[%emt 0:00:02]} 2. d4 {[%emt 0:00:08]} d5 {[%emt 0:00:03]} 3. Nc3 {[%emt 0:00:05]} Nf6 {[%emt 0:02:41]} 4. e5 {[%emt 0:00:06]} Nfd7 {[%emt 0:00:05]} 5. f4 {[%emt 0:01:21]} c5 {[%emt 0:00:05]} 6. Nf3 {[%emt 0:00:45]} Nc6 {[%emt 0:00:23]} 7. Be3 {[%emt 0:01:35]} Be7 {[%emt 0:01:45]} 8. Qd2 {[%emt 0:02:35]} O-O {[%emt 0:01:25]} 9. Be2 {[%emt 0:07:14]} b6 {[%emt 0:01:47]} 10. O-O {[%emt 0:04:07]} f5 {[%emt 0:00:11]} 11. dxc5 {[%emt 0:06:21] The position is equal.} Nxc5 {[%emt 0:01:06]} 12. Nd4 {[%emt 0:01:12]} Nxd4 {[%emt 0:02:11]} 13. Bxd4 {[%emt 0:00:28]} Bb7 {[%emt 0:03:11]} 14. b4 {[%emt 0:04:30]} Ne4 {[%emt 0:01:39]} 15. Nxe4 {[%emt 0:00:10]} dxe4 {[%emt 0:00:01]} 16. a3 {[%emt 0:11:25]} Rc8 {[%emt 0:03:14]} 17. c4 {[%emt 0:01:38]} g5 {[%emt 0:19:03]} 18. Be3 {[%emt 0:21:09]} Qc7 {[%emt 0:10:49]} 19. Qb2 {[%emt 0:10:03]} gxf4 {[%emt 0:02:03]} 20. Bxf4 {[%emt 0:00:07]} Kh8 {[%emt 0:00:46]} 21. Bh6 {[%emt 0:02:29]} Rg8 {[%emt 0:05:39]} 22. Rxf5 $2 {[%emt 0:05:47][%mdl 8192]} Rg6 $19 {[%emt 0:02:58]} (22... e3 23. Rf3 (23. g3 $2 Rg6 $19) 23... Bxf3 24. Bxf3) 23. Rh5 {[%emt 0:01:48] [#]} e3 $1 {[%emt 0:04:31][%mdl 512]} 24. Bf1 {[%emt 0:04:26]} (24. Bxe3 $2 Rxg2+ 25. Kf1 Rf8+ 26. Ke1 Bf3 $19) (24. g3 Qc6) 24... Qc6 {[%emt 0:13:01]} ({Better is} 24... Bxg2 $19 25. Bxg2 Rcg8 (25... Qxc4 26. Kh1 $17) 26. Bxe3 Qxc4 (26... Rxg2+ 27. Qxg2 Rxg2+ 28. Kxg2 $17)) 25. Bf4 $2 {[%emt 0:01:34]} (25. Bxe3 $2 {is the wrong capture.} Qf3 $19) (25. Ra2 $17 Qe4 26. Qe2) 25... Qf3 {[%emt 0:03:36][%cal Of3f4]} 26. Bg5 {[%emt 0:03:25]} Rxg5 {[%emt 0:05:46]} (26... Qxh5 $142 27. Bxe7 e2 28. Qxe2 Rxg2+ 29. Qxg2 Bxg2 30. Bf6+ Kg8 31. Kxg2 Kf7) 27. Rxg5 {[%emt 0:00:26]} Qf2+ {[%emt 0:09:05] Weighted Error Value: White=0.68/Black=0.62.  Loses game:     	White=2     	---        Mistake:       	---       	Black=1      Inaccurate:     	White=1     	---        OK:         	White=7     	Black=8      Brilliant:      	---       	Black=1} 0-1

[Event "Sardinia World Festival-A 2024"]
[Site "Orosei"]
[Date "2024.04.27"]
[Round "1.51"]
[White "Piovesan, Sara"]
[Black "Zanchini, Domenico Francesco"]
[Result "*"]
[ECO "C11"]
[WhiteElo "1579"]
[BlackElo "1461"]
[Annotator "NA RC"]
[PlyCount "54"]
[EventDate "2024.04.26"]
[EventType "swiss"]
[EventCountry "ITA"]
[SourceTitle "playchess.com"]
[Source "ChessBase"]
[SourceQuality "1"]
[TimeControl "40/5400+30:1800+30"]

1. e4 {[%emt 0:02:37]} e6 {[%emt 0:00:02]} 2. d4 {[%emt 0:00:08]} d5 {[%emt 0:00:03]} 3. Nc3 {[%emt 0:00:05]} Nf6 {[%emt 0:02:41]} 4. e5 {[%emt 0:00:06]} Nfd7 {[%emt 0:00:05]} 5. f4 {[%emt 0:01:21]} c5 {[%emt 0:00:05]} 6. Nf3 {[%emt 0:00:45]} Nc6 {[%emt 0:00:23]} 7. Be3 {[%emt 0:01:35]} Be7 {[%emt 0:01:45]} 8. Qd2 {[%emt 0:02:35]} O-O {[%emt 0:01:25]} 9. Be2 {[%emt 0:07:14]} b6 {[%emt 0:01:47]} 10. O-O {[%emt 0:04:07]} f5 {[%emt 0:00:11]} 11. dxc5 {[%emt 0:06:21]} Nxc5 {[%emt 0:01:06]} 12. Nd4 {[%emt 0:01:12]} Nxd4 {[%emt 0:02:11]} 13. Bxd4 {[%emt 0:00:28]} Bb7 {[%emt 0:03:11]} 14. b4 {[%emt 1:08:56]} Ne4 {[%emt 0:01:39]} 15. Nxe4 {[%emt 0:00:10]} dxe4 {[%emt 0:00:01]} 16. a3 {[%emt 0:11:25]} Rc8 {[%emt 0:03:14]} 17. c4 {[%emt 0:01:38]} g5 {[%emt 0:19:03]} 18. Be3 {[%emt 0:21:09]} Qc7 {[%emt 0:10:49]} 19. Qb2 {[%emt 0:10:03]} gxf4 {[%emt 0:02:03]} 20. Bxf4 {[%emt 0:23:01]} Kh8 {[%emt 0:00:46]} 21. Bh6 {[%emt 0:02:29]} Rg8 {[%emt 0:05:39]} 22. Rxf5 {[%emt 0:05:47]} Rg6 {[%emt 0:02:58]} 23. Rh5 {[%emt 0:01:48]} e3 {[%emt 0:04:31]} 24. Bf1 {[%emt 0:04:26]} Qc6 {[%emt 0:13:01]} 25. Bf4 {[%emt 0:01:34]} Qf3 {[%emt 0:03:36]} 26. Bg5 {[%emt 0:03:25]} Rxg5 {[%emt 0:05:46]} 27. Rxg5 {[%emt 0:00:26]} Qf2+ {[%emt 0:09:05]} *

[Event "Sardinia World Festival-A 2024"]
[Site "Orosei"]
[Date "2024.04.28"]
[Round "2.1"]
[White "Haldorsen, Benjamin"]
[Black "Fedoseev, Vladimir"]
[Result "1/2-1/2"]
[ECO "C11"]
[WhiteElo "2419"]
[BlackElo "2690"]
[Annotator "TA"]
[PlyCount "103"]
[EventDate "2024.04.26"]
[EventType "swiss"]
[EventCountry "ITA"]
[SourceTitle "playchess.com"]
[Source "ChessBase"]
[SourceQuality "1"]
[TimeControl "40/5400+30:1800+30"]

{[%evp 14,103,23,5,39,0,0,0,0,6,12,0,19,34,54,0,0,0,0,0,0,0,0,0,0,0,0,-10,0,0,0,-2,41,8,28,11,39,37,45,27,46,46,115,100,97,96,119,128,127,124,349,151,137,144,152,150,163,166,169,160,153,169,166,149,148,148,145,118,118,108,104,104,135,134,180,207,184,57,83,50,50,2,15,0,74,0,0,0,0,0,0,0]} 1. e4 {[%emt 0:01:34]} e6 {[%emt 0:00:21]} 2. d4 {[%emt 0:00:28]} d5 {[%emt 0:00:06]} 3. Nc3 {[%emt 0:00:38]} Nf6 {[%emt 0:01:39]} 4. e5 {[%emt 0:02:21]} Nfd7 {[%emt 0:00:02]} 5. f4 {[%emt 0:02:06]} c5 {[%emt 0:00:09]} 6. Nf3 {[%emt 0:00:03]} Nc6 {[%emt 0:00:09]} 7. Be3 {[%emt 0:00:41]} a6 {[%emt 0:00:07]} 8. a3 {[%emt 0:00:36]} Qb6 {[%emt 0:01:41]} 9. Be2 {[%emt 0:12:50]} cxd4 {[%emt 0:03:13]} 10. Nxd4 {[%emt 0:00:15]} Bc5 {[%emt 0:00:21]} (10... Qxb2 $2 11. Na4 $18) 11. Na4 {[%emt 0:00:28]} Qa5+ {[%emt 0:00:07]} 12. Nc3 {[%emt 0:02:16] Nxc6 would now be deadly.} Bxd4 {[%emt 0:08:00]} 13. Bxd4 {[%emt 0:01:40]} b5 {[%emt 0:02:28]} 14. b4 {[%emt 0:06:17]} (14. Bf2 $14) 14... Qc7 $11 {[%emt 0:03:02]} 15. O-O {[%emt 0:09:13]} O-O {[%emt 0:02:43]} 16. Qd2 {[%emt 0:07:51]} Bb7 {[%emt 0:04:42]} 17. Bf2 {[%emt 0:05:06]} d4 {[%emt 0:11:28]} 18. Nd1 {[%emt 0:02:38][%cal Oc2c3]} f6 {[%emt 0:04:53]} 19. exf6 {[%emt 0:03:06]} Nxf6 {[%emt 0:00:53]} 20. Bf3 {[%emt 0:05:21][%cal Of1e1] Prevents Ne4} e5 {[%emt 0:13:34]} 21. fxe5 {[%emt 0:07:00]} Nxe5 {[%emt 0:00:52]} 22. Bxb7 {[%emt 0:01:05]} (22. Qxd4 $2 {too greedy.} Nxf3+ (22... Bxf3 $2 23. Bg3 $19) 23. gxf3 Nh5 $19 (23... Bxf3 $2 24. Qc3 $19) (23... Qxc2 24. Ne3 $17)) 22... Qxb7 {[%emt 0:00:06]} (22... Neg4 {is more complex.} 23. Bg3 Qxb7 24. Qxd4 Rad8) 23. Qxd4 {[%emt 0:01:02]} Nc4 {[%emt 0:02:16] A dynamic duo of knights.} 24. Nc3 {[%emt 0:06:43]} Rfd8 {[%emt 0:03:52]} 25. Qf4 {[%emt 0:01:38]} Rd2 {[%emt 0:00:12]} 26. a4 {[%emt 0:01:01] Black must now prevent axb5.} Re8 {[%emt 0:13:17]} 27. Rae1 {[%emt 0:05:26] Prevents Ne3.} Red8 {[%emt 0:08:56]} (27... Rxe1 $14 28. Rxe1 Rxc2) 28. axb5 {[%emt 0:01:31]} axb5 {[%emt 0:00:25]} 29. Qf5 {[%emt 0:04:31]} Na3 {[%emt 0:02:18]} 30. Ne4 {[%emt 0:00:56]} Nxe4 {[%emt 0:00:56]} 31. Rxe4 {[%emt 0:00:13]} Qc8 {[%emt 0:04:35] [#]} (31... Qd5 $16 32. Qxd5+ R2xd5) 32. Qxc8 {[%emt 0:03:31]} (32. Qf3 $1 $18 {and the rest is easy.} Nc4 33. Bd4) 32... Rxc8 $16 {[%emt 0:00:06] [#]} 33. c3 {[%emt 0:00:14][%mdl 512]} Rd7 {[%emt 0:03:36] Inhibits Re7.} (33... h6 34. Bd4) 34. Bc5 {[%emt 0:02:09]} h6 {[%emt 0:00:32]} 35. h3 {[%emt 0:00:03]} Kh7 {[%emt 0:01:05]} 36. Kh2 {[%emt 0:01:53]} Nc4 {[%emt 0:00:59]} 37. Rfe1 {[%emt 0:00:51]} Rcc7 {[%emt 0:01:56]} 38. Bd4 {[%emt 0:00:36]} Rb7 {[%emt 0:01:26]} 39. R1e2 {[%emt 0:00:38]} Nb6 {[%emt 0:01:29]} 40. Bxb6 {[%emt 0:03:22]} Rxb6 {[%emt 0:00:06][%mdl 4096] Endgame. KRR-KRR} 41. Re5 {[%emt 0:30:35]} Rc7 {[%emt 0:02:26]} 42. R2e3 {[%emt 0:00:00]} Rbc6 {[%emt 0:03:31]} 43. Rxb5 {[%emt 0:00:00]} Rxc3 {[%emt 0:00:03]} (43... Kg6 $16 {is a better defense.} 44. Rg3+ Kh7) 44. Rxc3 $18 {[%emt 0:00:00]} Rxc3 $16 {[%emt 0:00:01] [#] KR-KR} 45. Rc5 {[%emt 0:00:00]} (45. Rb6 $1 $18) 45... Rb3 $14 {[%emt 0:00:12]} 46. Rc4 {[%emt 0:00:00]} h5 {[%emt 0:00:42]} 47. Kg1 {[%emt 0:00:00]} (47. h4 $14) 47... Rb2 {[%emt 0:00:19]} 48. Kh2 {[%emt 0:00:00]} ({White should play} 48. h4 $11) 48... Rb3 $16 {[%emt 0:00:09]} 49. g4 {[%emt 0:00:00]} (49. h4 $16) 49... Kh6 $11 {[%emt 0:03:12] The position is equal.} 50. gxh5 {[%emt 0:00:00]} Kxh5 {[%emt 0:00:10]} 51. Kg2 {[%emt 0:00:00]} g5 {[%emt 0:00:11]} 52. Rd4 {[%emt 0:00:00] Blacks defense is rewarded with a draw.   Weighted Error Value: White=0.21 (precise) /Black=0.20 (precise) .  Loses game:     	---       	Black=1      Missed win:     	White=1     	---        Mistake:       	White=5     	Black=2      Inaccurate:     	White=3     	Black=2      OK:         	White=12    	Black=19     Best:        	White=1     	Black=2      Brilliant:      	White=1     	---} 1/2-1/2

[Event "Sardinia World Festival-A 2024"]
[Site "Orosei"]
[Date "2024.04.28"]
[Round "2.2"]
[White "Sjugirov, Sanan"]
[Black "Carnicelli, Valerio"]
[Result "1-0"]
[ECO "B31"]
[WhiteElo "2689"]
[BlackElo "2413"]
[Annotator "TA"]
[PlyCount "113"]
[EventDate "2024.04.26"]
[EventType "swiss"]
[EventCountry "ITA"]
[SourceTitle "playchess.com"]
[Source "ChessBase"]
[SourceQuality "1"]
[TimeControl "40/5400+30:1800+30"]

{[%evp 14,113,27,18,56,10,14,0,23,18,25,17,25,19,23,6,32,31,32,32,40,22,41,26,35,28,50,20,34,21,97,98,113,74,109,77,82,75,88,52,54,57,63,58,64,68,65,67,55,52,54,56,91,91,93,60,72,56,92,85,90,90,90,87,119,101,93,93,100,93,93,37,31,31,36,38,31,23,31,31,43,38,48,20,43,24,77,77,77,77,81,77,78,77,78,53,78,76,82,62,201,201]} 1. e4 {[%emt 0:00:27]} c5 {[%emt 0:00:07]} 2. Nf3 {[%emt 0:01:13]} Nc6 {[%emt 0:00:10]} 3. Bb5 {[%emt 0:01:46]} g6 {[%emt 0:00:20]} 4. O-O {[%emt 0:03:37]} Bg7 {[%emt 0:00:16]} 5. Re1 {[%emt 0:00:25]} e5 {[%emt 0:00:17]} 6. Bxc6 {[%emt 0:00:16]} dxc6 {[%emt 0:00:12]} 7. d3 {[%emt 0:00:30]} Qe7 {[%emt 0:00:21]} 8. a4 {[%emt 0:00:39]} Be6 {[%emt 0:01:30]} 9. Na3 {[%emt 0:29:53]} (9. a5 $14) 9... f6 $11 {[%emt 0:00:17]} 10. Qd2 {[%emt 0:06:41]} Bh6 {[%emt 0:04:41] The position is equal.} 11. Qe2 {[%emt 0:10:54]} Bxc1 {[%emt 0:03:49]} 12. Rexc1 {[%emt 0:00:20]} Nh6 {[%emt 0:01:56]} 13. Nd2 {[%emt 0:00:48]} Nf7 {[%emt 0:03:10]} 14. Nac4 {[%emt 0:03:41]} Nd6 {[%emt 0:08:18]} 15. b3 {[%emt 0:01:38]} O-O {[%emt 0:02:49]} 16. Rf1 {[%emt 0:00:57]} Kg7 {[%emt 0:03:53]} 17. Qe3 {[%emt 0:02:47]} Bxc4 {[%emt 0:12:42]} 18. bxc4 {[%emt 0:09:54]} Nf7 {[%emt 0:00:21]} 19. g3 {[%emt 0:05:10][%cal Bg2g3,Bg3g4][%mdl 32]} Qd6 {[%emt 0:02:32]} 20. Rfb1 {[%emt 0:01:56]} Nd8 {[%emt 0:03:28]} 21. f4 {[%emt 0:03:50][%cal Bf2f4,Bf4f5][%mdl 32]} Rf7 {[%emt 0:06:47]} (21... exf4 $11 {remains equal.} 22. gxf4 Rb8) 22. f5 $16 {[%emt 0:00:57]} b6 {[%emt 0:09:10]} 23. g4 {[%emt 0:02:16]} Rb7 {[%emt 0:10:32]} 24. Nf3 {[%emt 0:01:03]} Nf7 {[%emt 0:01:39]} 25. Kh1 {[%emt 0:01:14]} g5 {[%emt 0:05:23]} 26. h4 {[%emt 0:01:04]} h6 $1 {[%emt 0:00:04]} 27. Kg2 {[%emt 0:02:07]} Rh8 {[%emt 0:00:45]} 28. Rh1 {[%emt 0:01:42]} Kf8 {[%emt 0:00:49]} 29. hxg5 {[%emt 0:02:38]} hxg5 {[%emt 0:00:10] Black is weak on the light squares} 30. Rxh8+ {[%emt 0:00:08]} Nxh8 {[%emt 0:00:03]} 31. Rh1 {[%emt 0:00:04]} Kg8 {[%emt 0:03:00]} 32. a5 {[%emt 0:00:06]} Rh7 {[%emt 0:01:38]} 33. Rb1 $36 {[%emt 0:00:08][%mdl 2048] White is really pushing.} Qd8 {[%emt 0:01:27]} 34. axb6 {[%emt 0:01:16]} axb6 {[%emt 0:00:01]} 35. Qc1 {[%emt 0:00:21]} Rb7 {[%emt 0:01:48]} 36. Ra1 {[%emt 0:00:17][%cal Bb1a1,Ba1a6,Ba6a8][%mdl 32]} Nf7 {[%emt 0:02:06]} 37. Qh1 {[%emt 0:00:39]} Nd6 {[%emt 0:01:35]} 38. Ra6 {[%emt 0:00:48]} Rh7 {[%emt 0:01:17] [#]} 39. Qa1 {[%emt 0:00:28]} Rb7 {[%emt 0:00:25]} 40. Nd2 {[%emt 0:02:37]} Qc7 {[%emt 0:02:21]} 41. Ra8+ {[%emt 0:32:24]} Rb8 {[%emt 0:37:33]} 42. Qa7 {[%emt 0:00:00]} (42. Ra3 $16) 42... Qxa7 $14 {[%emt 0:00:00]} 43. Rxa7 {[%emt 0:00:00][%mdl 4096] Endgame. KRN-KRN} Rb7 {[%emt 0:00:00]} 44. Ra8+ {[%emt 0:00:00]} Kf7 $1 {[%emt 0:00:00]} 45. Nf1 {[%emt 0:00:00]} Ke7 {[%emt 0:00:00]} 46. Kf2 {[%emt 0:00:00]} Kd7 {[%emt 0:00:00]} 47. Ng3 {[%emt 0:00:00]} Ke7 {[%emt 0:00:00]} 48. Nh5 {[%emt 0:00:00]} Ne8 {[%emt 0:00:00]} 49. Ke3 {[%emt 0:00:00]} Kd7 {[%emt 0:00:00]} (49... b5 $11) 50. Kd2 $16 {[%emt 0:00:00] White is much more active.} Ke7 {[%emt 0:00:00]} 51. Ng3 {[%emt 0:00:00]} Kd7 {[%emt 0:00:00]} 52. Ra1 {[%emt 0:00:00]} Nd6 {[%emt 0:00:16]} 53. Nh5 {[%emt 0:00:00]} Ne8 {[%emt 0:00:23]} 54. Rh1 {[%emt 0:00:00]} Kd6 {[%emt 0:01:22]} 55. Ng3 {[%emt 0:00:20]} Rf7 {[%emt 0:00:31]} 56. Ke3 {[%emt 0:01:16]} Ke7 {[%emt 0:01:11] [#]} (56... Kd7 $14) 57. Rb1 $1 {[%emt 0:00:11] Weighted Error Value: White=0.10 (very precise) /Black=0.13 (very precise) .  Mistake:       	White=2     	Black=3      Inaccurate:     	White=5     	Black=5      OK:         	White=20    	Black=20     Best:        	White=1     	Black=2      Strong:       	White=1     	Black=2} 1-0

[Event "Sardinia World Festival-A 2024"]
[Site "Orosei"]
[Date "2024.04.28"]
[Round "2.3"]
[White "Yankelevich, Lev"]
[Black "Shevchenko, Kirill"]
[Result "1-0"]
[ECO "E01"]
[WhiteElo "2413"]
[BlackElo "2675"]
[Annotator "TA"]
[PlyCount "93"]
[EventDate "2024.04.26"]
[EventType "swiss"]
[EventCountry "ITA"]
[SourceTitle "playchess.com"]
[Source "ChessBase"]
[SourceQuality "1"]
[TimeControl "40/5400+30:1800+30"]

{[%evp 9,93,0,19,21,17,22,26,26,25,21,20,30,26,-12,-12,-4,5,-20,-16,-20,-22,-25,-13,-11,-6,-17,-12,-27,-30,-8,-16,-34,-14,-34,0,0,0,0,0,0,0,0,0,0,13,16,22,15,36,37,29,16,16,7,51,17,18,0,42,0,19,0,15,20,58,50,54,64,135,135,163,160,151,161,2400,2357,11722,9999,29986,29987,29987,29988,29988,29989,29989,373]} 1. d4 {[%emt 0:03:48]} Nf6 {[%emt 0:00:11]} 2. c4 {[%emt 0:00:09]} e6 {[%emt 0:00:12]} 3. Nf3 {[%emt 0:01:58]} d5 {[%emt 0:01:09]} 4. g3 {[%emt 0:00:28]} Bb4+ {[%emt 0:01:33]} 5. Bd2 {[%emt 0:03:03]} Bd6 {[%emt 0:00:08]} 6. Bg2 {[%emt 0:00:29] E01: Catalan: Early deviations.} O-O {[%emt 0:01:17]} 7. O-O {[%emt 0:00:10]} Nbd7 {[%emt 0:00:24]} 8. c5 {[%emt 0:01:14]} Be7 {[%emt 0:00:50]} 9. b4 {[%emt 0:00:24]} Ne4 {[%emt 0:04:16][%cal Oa7a5]} 10. Nc3 {[%emt 0:04:05]} f5 {[%emt 0:07:42]} 11. Ne1 $146 {[%emt 0:21:48]} ({Predecessor:} 11. Qb3 Bf6 12. Be3 c6 13. Rad1 Kh8 14. Na4 b6 15. Qc2 a5 16. Ne5 Nxe5 17. dxe5 Bxe5 18. Nxb6 Ra7 19. bxa5 Ba6 {½-½ Can,E (2586)-Moiseenko,A (2648) EU-ch 20th Skopje 2019 (4)}) 11... c6 {[%emt 0:12:31]} 12. Nc2 {[%emt 0:14:31]} e5 {[%emt 0:13:29]} 13. Nxe4 {[%emt 0:04:28]} fxe4 {[%emt 0:00:35]} 14. f3 {[%emt 0:02:19]} exf3 {[%emt 0:07:24]} 15. exf3 {[%emt 0:00:05]} a5 {[%emt 0:00:43] Hoping for ...axb4.} 16. a3 $1 {[%emt 0:00:14]} exd4 {[%emt 0:01:16]} 17. Nxd4 {[%emt 0:00:22] Strongly threatening Ne6.} Ne5 {[%emt 0:00:06]} 18. Bc3 $1 {[%emt 0:03:15]} Nc4 {[%emt 0:08:19]} 19. Re1 {[%emt 0:01:05] Inhibits Ne3.} Bf6 {[%emt 0:04:00]} 20. Bf1 {[%emt 0:01:29]} Re8 {[%emt 0:05:54]} 21. Bd3 {[%emt 0:08:33]} axb4 {[%emt 0:07:52]} 22. axb4 {[%emt 0:00:12]} Rxa1 {[%emt 0:00:25]} 23. Qxa1 {[%emt 0:01:37]} Bd7 {[%emt 0:00:36]} 24. Nc2 {[%emt 0:06:43]} Bxc3 {[%emt 0:13:57]} 25. Qxc3 {[%emt 0:00:38]} Rxe1+ {[%emt 0:00:16]} 26. Nxe1 {[%emt 0:02:40]} Be6 {[%emt 0:00:34]} 27. Nc2 {[%emt 0:00:14]} Bf7 {[%emt 0:00:58]} 28. Kf2 {[%emt 0:18:29]} Qa8 {[%emt 0:02:31]} 29. Qa1 {[%emt 0:00:00]} Qc8 {[%emt 0:00:31]} 30. Nd4 {[%emt 0:00:00]} g6 {[%emt 0:01:50] Wards off Nf5} 31. Nc2 {[%emt 0:00:00]} Qd8 {[%emt 0:01:24]} (31... Qh3 {seems wilder.} 32. Kg1 Qe6 33. f4 Nd2) 32. Qd4 {[%emt 0:00:00] aiming for Bxc4.} Qa8 $1 {[%emt 0:00:54]} 33. Qa1 {[%emt 0:00:00]} Qc8 {[%emt 0:01:16]} 34. Qd4 {[%emt 0:00:00]} Qa8 {[%emt 0:00:45]} 35. Qa1 {[%emt 0:00:00]} Qb8 {[%emt 0:00:40]} 36. Qf6 {[%emt 0:00:00]} Ne5 {[%emt 0:01:08]} (36... Qa7 {keeps more tension.} 37. h4 Qa2 38. h5 Qb2) 37. Be2 {[%emt 0:00:00]} Qe8 {[%emt 0:00:44]} 38. h4 {[%emt 0:00:00]} Nc4 {[%emt 0:00:35] [#]} ({Black should try} 38... h5 $14) 39. h5 $1 $16 {[%emt 0:01:31][%mdl 512]} gxh5 {[%emt 0:00:29]} (39... Be6 40. Qg5) 40. Bxc4 $1 {[%emt 0:01:18]} dxc4 {[%emt 0:00:06]} 41. Nd4 {[%emt 0:30:05] Threatens to win with Nf5.} h4 $2 {[%emt 0:09:38] [#]} (41... Bg6) 42. Nf5 $1 $18 {[%emt 0:00:00][%csl Gf5][%cal Rf6g7]} (42. Qxh4 Qe5 $16) 42... hxg3+ {[%emt 0:03:49]} 43. Kg2 {[%emt 0:00:00][%csl Gf5][%cal Rf6g7]} Qe2+ {[%emt 0:08:00] [#]} 44. Kh3 $1 {[%emt 0:00:00][%csl Gf5][%cal Rf6g7]} Kf8 {[%emt 0:02:49]} 45. Qh8+ {[%emt 0:00:00]} ({Weaker is} 45. Kxg3 Qe1+ 46. Kg4 Qg1+ 47. Kf4 Qh2+ 48. Ke3 Qg1+ 49. Ke2 Qh2+ 50. Kf1 Qh1+ 51. Kf2 Qh2+ 52. Kf1 (52. Ke3 Qg1+ 53. Ke4 Qe1+ 54. Kf4 Qd2+ 55. Kg3 Qe1+ 56. Kh3 Qh1+ 57. Kg3 Qe1+ $11) 52... Qh1+ 53. Kf2 Qh2+ 54. Ke3 Qg1+ 55. Ke4 Qe1+ 56. Kf4 Qd2+ 57. Kg3 Qe1+ 58. Kg4 h5+ 59. Kg5 Qc1+ 60. Kh4 (60. f4 Qg1+ 61. Kh6 Qg6+ 62. Qxg6 Bxg6 $11) 60... Qf4+ (60... Qh1+ 61. Kg3 $11) 61. Kh3 Qxf3+ 62. Kh2 Qf4+ 63. Kh1 Qf1+ 64. Kh2 Qf2+ 65. Kh1 Qf1+ 66. Kh2 Qf2+ 67. Kh1 Qf1+ $11) 45... Bg8 {[%emt 0:00:01]} 46. Qg7+ {[%emt 0:00:00]} (46. Nxg3 $2 {is the wrong capture.} Qxf3 47. Kh4 Qf4+ 48. Kh3 Qg5 $19) 46... Ke8 {[%emt 0:00:01]} 47. Nd6+ {[%emt 0:00:00]} 1-0